fUSD/lending_fUSD_20240521
["ID","MTS","AMOUNT","RATE_DAILY","PERIOD"]
[327620316,1716253894684,1542.729638,0.00032374,2]
[327620317,1716253897524,159.86492,0.00030832,2]
[327620318,1716253897594,159.86492,0.00031218,2]
[327620319,1716253897652,159.86492,0.00031603,2]
[327620320,1716253897708,159.86492,0.00031988,2]
[327620321,1716253897762,159.86492,0.00032374,2]
[327620322,1716253908204,155.0,0.00017259,2]
[327620339,1716254742188,-150.66,0.00013973,2]
[327620340,1716254742210,-501.87366213,0.00017259,2]
[327620341,1716254742230,-18.78304122,0.00017259,2]
[327620342,1716254833117,-454.46184406,0.00017259,2]
[327620348,1716254949174,-10327.68196667,0.00017259,2]
[327620349,1716254949198,-2314.5,0.00021442,2]
[327620350,1716254949220,-1000.0,0.00021443,2]
[327620351,1716254949243,-155.79488318,0.0002192,2]
[327620352,1716254949267,-155.10854058,0.00021971,2]
[327620353,1716254949289,-499.99,0.00021971,2]
[327620354,1716254949313,-155.79488318,0.00022854,2]
[327620355,1716254949334,-150.99,0.00026913,2]
[327620356,1716254949357,-1098.77,0.00026913,2]
[327620357,1716254949379,-1000.0,0.00026913,2]
[327620358,1716254949399,-155.10854058,0.00027305,2]
[327620359,1716254949420,-152.08719953,0.00028,90]
[327620360,1716254949440,-1000.0,0.00030203,2]
[327620361,1716254949462,-5037.63,0.00030203,2]
[327620362,1716254949482,-17613.89398628,0.00030203,2]
[327620363,1716254952110,-8301.00601372,0.00030203,2]
[327620364,1716254952133,-161.05,0.00031904,2]
[327620365,1716254952154,-4294.0,0.000321,5]
[327620366,1716254952177,-993.0,0.000321,5]
[327620367,1716254952198,-2000.0,0.00033466,120]
[327620368,1716254952220,-4494.62194808,0.00033499,2]
[327620369,1716254958139,-3801.23805192,0.00033499,2]
[327620370,1716254958162,-153.06,0.000335,2]
[327620371,1716254958184,-153.06,0.000335,2]
[327620372,1716254958205,-153.06,0.000335,2]
[327620373,1716254958226,-153.06,0.000335,2]
[327620374,1716254958249,-153.06,0.000335,2]
[327620375,1716254958271,-153.06,0.000335,2]
[327620376,1716254958292,-153.06,0.000335,2]
[327620377,1716254958314,-153.06,0.000335,2]
[327620378,1716254958335,-153.06,0.000335,2]
[327620379,1716254958356,-153.06,0.000335,2]
[327620380,1716254958379,-153.06,0.000335,2]
[327620381,1716254958399,-200.0,0.00033522,2]
[327620382,1716254958420,-698.33,0.0003366,2]
[327620383,1716254958440,-250.0,0.00033738,2]
[327620384,1716254958460,-637.54,0.00033801,2]
[327620385,1716254958480,-150.0,0.00033804,2]
[327620386,1716254958501,-1000.0,0.00033821,2]
[327620387,1716254958521,-250.0,0.00033821,2]
[327620388,1716254958540,-608.96,0.00033887,2]
[327620389,1716254958560,-159.84,0.00033911,120]
[327620390,1716254958580,-500.0,0.00033977,2]
[327620391,1716254958600,-250.0,0.00034075,115]
[327620392,1716254958623,-152.16,0.0003433,2]
[327620394,1716255014569,833.80195999,0.00029,2]
[327620395,1716255021054,1150.77855717,0.0003433,2]
[327620400,1716255032809,-153.54276539,0.0003503,7]
[327620402,1716255032826,-150.0,0.00035616,2]
[327620404,1716255032835,-169.18,0.00035991,2]
[327620405,1716255032845,-7238.04971945,0.00036299,4]
[327620406,1716255032855,-153.06,0.000363,3]
[327620407,1716255032865,-153.06,0.000363,3]
[327620408,1716255032874,-153.06,0.000363,3]
[327620409,1716255032883,-153.06,0.000363,3]
[327620410,1716255032893,-153.06,0.000363,3]
[327620411,1716255032902,-153.06,0.000363,3]
[327620412,1716255032911,-153.06,0.000363,3]
[327620413,1716255032920,-153.06,0.000363,3]
[327620414,1716255032929,-153.06,0.000363,3]
[327620415,1716255032944,-153.06,0.000363,3]
[327620416,1716255032953,-153.06,0.000363,3]
[327620417,1716255032962,-155.33,0.000363,120]
[327620418,1716255032971,-2004.25641899,0.00036436,2]
[327620419,1716255032980,-978.276,0.0003648,2]
[327620420,1716255032989,-150.0,0.00036554,2]
[327620421,1716255032998,-465.22,0.00036846,2]
[327620422,1716255033007,-180.0,0.00037145,2]
[327620423,1716255033017,-10925.90452259,0.00037157,4]
[327620424,1716255033026,-165.67243147,0.00037281,7]
[327620425,1716255033035,-612.0,0.0003743,2]
[327620426,1716255033045,-444.0,0.0003743,2]
[327620427,1716255033055,-439.0,0.0003743,2]
[327620428,1716255033065,-164.0,0.0003743,2]
[327620429,1716255033075,-201.0,0.0003743,2]
[327620430,1716255033085,-1647.0,0.0003743,2]
[327620431,1716255033094,-150.0,0.0003743,2]
[327620432,1716255033104,-150.0,0.0003743,2]
[327620433,1716255033115,-1977.0,0.0003743,2]
[327620434,1716255033124,-159.0,0.0003743,2]
[327620435,1716255033133,-215.0,0.0003743,2]
[327620436,1716255033142,-1127.0,0.0003743,2]
[327620437,1716255033152,-140.56975394,0.0003743,2]
[327620438,1716255033163,-961.43024606,0.0003743,2]
[327620439,1716255033172,-862.667,0.0003743,2]
[327620440,1716255033186,-290.369,0.0003743,2]
[327620441,1716255033194,-4721.527,0.0003743,2]
[327620442,1716255033204,-5786.14,0.0003743,2]
[327620443,1716255033213,-150.0,0.00037491,2]
[327620444,1716255033222,-157.54,0.00038027,30]
[327620445,1716255033232,-1000.0,0.00038049,2]
[327620446,1716255033241,-411.34756257,0.00038055,2]
[327620447,1716255033250,-411.34756249,0.00038094,2]
[327620448,1716255033259,-411.34756249,0.00038134,2]
[327620449,1716255033269,-7133.1972,0.00038155,2]
[327620450,1716255033278,-1000.0,0.00038155,2]
[327620451,1716255033288,-895.2832,0.00038155,7]
[327620452,1716255033297,-411.34756249,0.00038173,2]
[327620453,1716255033307,-411.34756249,0.00038213,2]
[327620455,1716255033317,-822.34,0.00038245,10]
[327620456,1716255033326,-411.34756249,0.00038252,2]
[327620458,1716255033335,-64669.0388,0.00038255,2]
[327620460,1716255033345,-206.7616193,0.00038256,2]
[327620462,1716255033354,-1280.59181506,0.00038256,11]
[327620464,1716255033363,-151.85412208,0.00038256,2]
[327620467,1716255033373,-411.34756249,0.00038292,2]
[327620470,1716255033382,-1950.86019041,0.000383,6]
[327620474,1716255033394,-17369.18980959,0.000383,6]
[327620476,1716255033404,-411.34756249,0.00038331,2]
[327620479,1716255033413,-552.62694645,0.0003835,2]
[327620482,1716255033423,-5687.24550343,0.00038354,2]
[327620484,1716255033435,-1885.96568,0.00038354,4]
[327620487,1716255033444,-665.99774291,0.00038354,7]
[327620490,1716255033453,-2542.66599988,0.00038354,4]
[327620492,1716255033463,-1471.56806429,0.00038354,30]
[327620495,1716255033474,-1105.90541995,0.00038354,30]
[327620498,1716255033482,-1481.71970581,0.00038355,4]
[327620501,1716255033492,-390.08807544,0.00038355,10]
[327620503,1716255033501,-169.66721492,0.00038356,4]
[327620506,1716255033511,-200.0,0.00038356,6]
[327620508,1716255033520,-500.0,0.00038356,6]
[327620509,1716255033529,-500.0,0.00038356,6]
[327620510,1716255033539,-674.84,0.00038356,6]
[327620511,1716255033548,-500.0,0.00038356,6]
[327620512,1716255033557,-500.0,0.00038356,6]
[327620513,1716255033566,-1145.69,0.00038356,6]
[327620514,1716255033576,-500.0,0.00038356,6]
[327620515,1716255033585,-500.0,0.00038356,6]
[327620516,1716255033594,-500.0,0.00038356,6]
[327620517,1716255033603,-500.0,0.00038356,6]
[327620518,1716255033613,-604.53,0.00038356,6]
[327620519,1716255033622,-837.82,0.00038356,6]
[327620520,1716255033631,-500.0,0.00038356,6]
[327620521,1716255033640,-710.31,0.00038356,6]
[327620522,1716255033649,-500.0,0.00038356,6]
[327620523,1716255033658,-500.0,0.00038356,6]
[327620524,1716255033668,-500.0,0.00038356,6]
[327620525,1716255033677,-500.0,0.00038356,6]
[327620526,1716255033689,-500.0,0.00038356,6]
[327620527,1716255033699,-500.0,0.00038356,6]
[327620528,1716255033708,-500.0,0.00038356,6]
[327620529,1716255033717,-500.0,0.00038356,6]
[327620530,1716255033727,-500.0,0.00038356,6]
[327620531,1716255033736,-500.0,0.00038356,6]
[327620532,1716255033746,-500.0,0.00038356,6]
[327620533,1716255033755,-500.0,0.00038356,6]
[327620534,1716255033765,-500.0,0.00038356,6]
[327620535,1716255033774,-500.0,0.00038356,6]
[327620536,1716255033783,-500.0,0.00038356,6]
[327620537,1716255033793,-500.0,0.00038356,6]
[327620538,1716255033802,-500.0,0.00038356,6]
[327620539,1716255033811,-500.0,0.00038356,6]
[327620540,1716255033821,-500.0,0.00038356,6]
[327620541,1716255033830,-500.0,0.00038356,6]
[327620542,1716255033840,-500.0,0.00038356,6]
[327620543,1716255033850,-502.20494281,0.00038356,6]
[327620544,1716255033859,-500.0,0.00038356,6]
[327620545,1716255033868,-566.3,0.00038356,6]
[327620546,1716255033878,-523.22,0.00038356,6]
[327620547,1716255033887,-500.0,0.00038356,6]
[327620548,1716255033897,-500.0,0.00038356,6]
[327620549,1716255033906,-577.7,0.00038356,6]
[327620550,1716255033915,-500.0,0.00038356,6]
[327620551,1716255033924,-443.98997322,0.00038356,6]
[327620552,1716255033936,-500.0,0.00038356,6]
[327620553,1716255033946,-500.0,0.00038356,6]
[327620554,1716255033956,-500.0,0.00038356,6]
[327620555,1716255033965,-500.0,0.00038356,6]
[327620556,1716255033974,-500.0,0.00038356,6]
[327620557,1716255033983,-500.0,0.00038356,6]
[327620558,1716255033992,-500.0,0.00038356,6]
[327620559,1716255034002,-504.37904937,0.00038356,6]
[327620560,1716255034011,-500.0,0.00038356,6]
[327620561,1716255034021,-500.0,0.00038356,6]
[327620562,1716255034031,-500.0,0.00038356,6]
[327620563,1716255034040,-500.0,0.00038356,6]
[327620564,1716255034050,-500.0,0.00038356,6]
[327620565,1716255034059,-500.0,0.00038356,6]
[327620566,1716255034069,-501.81448776,0.00038356,6]
[327620567,1716255034079,-567.5,0.00038356,6]
[327620568,1716255034090,-500.0,0.00038356,6]
[327620569,1716255034099,-631.7633233,0.00038356,2]
[327620570,1716255034112,-500.0,0.00038356,6]
[327620571,1716255034121,-500.0,0.00038356,6]
[327620572,1716255034131,-500.0,0.00038356,6]
[327620573,1716255034141,-522.16202074,0.00038356,6]
[327620574,1716255034151,-921.17,0.00038356,6]
[327620575,1716255034160,-500.0,0.00038356,6]
[327620576,1716255034170,-500.0,0.00038356,6]
[327620577,1716255034179,-500.0,0.00038356,6]
[327620578,1716255034191,-500.0,0.00038356,6]
[327620579,1716255034202,-772.37,0.00038356,6]
[327620580,1716255034211,-500.0,0.00038356,6]
[327620581,1716255034221,-1443.72,0.00038356,6]
[327620582,1716255034230,-500.0,0.00038356,6]
[327620583,1716255034240,-500.0,0.00038356,6]
[327620584,1716255034250,-500.0,0.00038356,6]
[327620585,1716255034259,-500.0,0.00038356,6]
[327620586,1716255034269,-500.0,0.00038356,6]
[327620587,1716255034278,-362.27384827,0.00038356,6]
[327620588,1716255034287,-150.0,0.00038356,6]
[327620589,1716255034297,-500.0,0.00038356,6]
[327620590,1716255034306,-500.0,0.00038356,6]
[327620591,1716255034315,-500.0,0.00038356,6]
[327620592,1716255034325,-500.0,0.00038356,6]
[327620593,1716255034334,-500.0,0.00038356,6]
[327620594,1716255034343,-623.77,0.00038356,6]
[327620595,1716255034352,-500.0,0.00038356,6]
[327620596,1716255034362,-500.0,0.00038356,6]
[327620597,1716255034371,-518.84142151,0.00038356,6]
[327620598,1716255034380,-513.04533274,0.00038356,6]
[327620599,1716255034390,-559.71,0.00038356,6]
[327620600,1716255034399,-853.09,0.00038356,6]
[327620601,1716255034408,-520.12,0.00038356,6]
[327620602,1716255034418,-500.0,0.00038356,6]
[327620603,1716255034427,-542.5,0.00038356,6]
[327620604,1716255034438,-495.1259847,0.00038356,6]
[327620605,1716255034447,-500.0,0.00038356,6]
[327620606,1716255034457,-500.0,0.00038356,6]
[327620607,1716255034466,-500.0,0.00038356,6]
[327620608,1716255034475,-521.71670954,0.00038356,6]
[327620609,1716255034484,-500.0,0.00038356,6]
[327620610,1716255034494,-500.0,0.00038356,6]
[327620611,1716255034504,-724.26,0.00038356,6]
[327620612,1716255034513,-813.22,0.00038356,6]
[327620613,1716255034522,-500.0,0.00038356,6]
[327620614,1716255034531,-608.15,0.00038356,6]
[327620615,1716255034541,-500.0,0.00038356,6]
[327620616,1716255034550,-570.31887382,0.00038356,6]
[327620617,1716255034560,-148.86330218,0.00038356,6]
[327620618,1716255034580,-396.08269175,0.00038356,6]
[327620619,1716255034589,-500.0,0.00038356,6]
[327620620,1716255034599,-500.0,0.00038356,6]
[327620621,1716255034608,-209.93929839,0.00038356,6]
[327620622,1716255034618,-504.26436213,0.00038356,6]
[327620623,1716255034628,-500.0,0.00038356,6]
[327620624,1716255034944,-500.0,0.00038356,6]
[327620625,1716255034969,-500.0,0.00038356,6]
[327620626,1716255034982,-500.0,0.00038356,6]
[327620627,1716255034991,-223.09085882,0.00038356,6]
[327620628,1716255035001,-500.0,0.00038356,6]
[327620629,1716255035012,-500.0,0.00038356,6]
[327620630,1716255035022,-500.0,0.00038356,6]
[327620631,1716255035032,-500.0,0.00038356,6]
[327620632,1716255035042,-500.0,0.00038356,6]
[327620633,1716255035051,-544.5,0.00038356,6]
[327620634,1716255035061,-825.74,0.00038356,6]
[327620635,1716255035071,-1034.07,0.00038356,6]
[327620636,1716255035081,-512.8528268,0.00038356,6]
[327620637,1716255035091,-500.0,0.00038356,6]
[327620638,1716255035102,-500.0,0.00038356,6]
[327620639,1716255035117,-500.0,0.00038356,6]
[327620640,1716255035127,-609.43,0.00038356,6]
[327620641,1716255035139,-500.0,0.00038356,6]
[327620642,1716255035149,-500.0,0.00038356,6]
[327620643,1716255035159,-500.0,0.00038356,6]
[327620644,1716255035169,-500.0,0.00038356,6]
[327620645,1716255035182,-500.0,0.00038356,6]
[327620646,1716255035197,-500.0,0.00038356,6]
[327620647,1716255035207,-500.0,0.00038356,6]
[327620648,1716255035216,-500.0,0.00038356,6]
[327620649,1716255035225,-500.0,0.00038356,6]
[327620650,1716255035236,-500.0,0.00038356,6]
[327620651,1716255035245,-579.45,0.00038356,6]
[327620652,1716255035254,-500.0,0.00038356,6]
[327620653,1716255035263,-300.0,0.00038356,6]
[327620654,1716255035273,-500.0,0.00038356,6]
[327620655,1716255035282,-500.0,0.00038356,6]
[327620656,1716255035293,-633.14,0.00038356,6]
[327620657,1716255035303,-538.7873541,0.00038356,6]
[327620658,1716255035312,-968.59,0.00038356,6]
[327620659,1716255035322,-648.21,0.00038356,6]
[327620660,1716255035332,-500.0,0.00038356,6]
[327620661,1716255035341,-500.0,0.00038356,6]
[327620662,1716255035351,-1542.37,0.00038356,6]
[327620663,1716255035361,-862.91,0.00038356,6]
[327620664,1716255035371,-500.0,0.00038356,6]
[327620665,1716255035382,-500.0,0.00038356,6]
[327620666,1716255035391,-500.0,0.00038356,6]
[327620667,1716255035401,-500.0,0.00038356,6]
[327620668,1716255035411,-500.0,0.00038356,6]
[327620669,1716255035421,-500.0,0.00038356,6]
[327620670,1716255035431,-635.07,0.00038356,6]
[327620671,1716255035447,-500.0,0.00038356,6]
[327620672,1716255035457,-500.0,0.00038356,6]
[327620673,1716255035467,-500.0,0.00038356,6]
[327620674,1716255035477,-500.0,0.00038356,6]
[327620675,1716255035487,-615.32,0.00038356,6]
[327620676,1716255035497,-1101.5,0.00038356,6]
[327620677,1716255035506,-500.0,0.00038356,6]
[327620678,1716255035516,-1171.0,0.00038356,6]
[327620679,1716255035527,-2243.48,0.00038356,6]
[327620680,1716255035536,-546.05,0.00038356,6]
[327620681,1716255035546,-500.0,0.00038356,6]
[327620682,1716255035555,-500.0,0.00038356,6]
[327620683,1716255035565,-500.0,0.00038356,6]
[327620684,1716255035575,-500.0,0.00038356,6]
[327620685,1716255035584,-500.0,0.00038356,6]
[327620686,1716255035595,-1041.78,0.00038356,6]
[327620687,1716255035606,-500.0,0.00038356,6]
[327620688,1716255035616,-794.53,0.00038356,6]
[327620689,1716255035626,-500.0,0.00038356,6]
[327620690,1716255035636,-500.0,0.00038356,6]
[327620691,1716255035646,-1329.77,0.00038356,6]
[327620692,1716255035656,-868.95,0.00038356,6]
[327620693,1716255035665,-500.0,0.00038356,6]
[327620694,1716255035676,-952.69,0.00038356,6]
[327620695,1716255035691,-500.0,0.00038356,6]
[327620696,1716255035701,-500.0,0.00038356,6]
[327620697,1716255035711,-628.47,0.00038356,6]
[327620698,1716255035721,-849.54,0.00038356,6]
[327620699,1716255035731,-2049.91,0.00038356,6]
[327620700,1716255035741,-500.0,0.00038356,6]
[327620701,1716255035751,-768.7,0.00038356,6]
[327620702,1716255035762,-500.0,0.00038356,6]
[327620703,1716255035772,-1556.45,0.00038356,6]
[327620704,1716255035782,-500.0,0.00038356,6]
[327620705,1716255035792,-500.0,0.00038356,6]
[327620706,1716255035802,-500.0,0.00038356,6]
[327620707,1716255035812,-2110.33,0.00038356,6]
[327620708,1716255035822,-2511.17,0.00038356,6]
[327620709,1716255035831,-867.54,0.00038356,6]
[327620710,1716255035842,-541.3,0.00038356,6]
[327620711,1716255035851,-500.0,0.00038356,6]
[327620712,1716255035861,-500.0,0.00038356,6]
[327620713,1716255035871,-500.0,0.00038356,6]
[327620714,1716255035880,-545.52,0.00038356,6]
[327620715,1716255035890,-1313.99,0.00038356,6]
[327620716,1716255035900,-871.9,0.00038356,6]
[327620717,1716255035910,-598.41,0.00038356,6]
[327620718,1716255035919,-680.03,0.00038356,6]
[327620719,1716255035929,-500.0,0.00038356,6]
[327620720,1716255035942,-500.0,0.00038356,6]
[327620721,1716255035952,-500.0,0.00038356,6]
[327620722,1716255035961,-500.0,0.00038356,6]
[327620723,1716255035970,-1056.57,0.00038356,6]
[327620724,1716255035980,-1071.01,0.00038356,6]
[327620725,1716255035988,-500.0,0.00038356,6]
[327620726,1716255035998,-500.0,0.00038356,6]
[327620727,1716255036009,-616.08,0.00038356,6]
[327620728,1716255036020,-202.79260106,0.00038356,6]
[327620729,1716255036030,-632.68,0.00038356,6]
[327620730,1716255036040,-500.0,0.00038356,6]
[327620731,1716255036049,-500.0,0.00038356,6]
[327620732,1716255036059,-500.0,0.00038356,6]
[327620733,1716255036070,-1080.42,0.00038356,6]
[327620734,1716255036079,-500.0,0.00038356,6]
[327620735,1716255036092,-500.0,0.00038356,6]
[327620736,1716255036101,-1261.32,0.00038356,6]
[327620737,1716255036115,-832.76,0.00038356,6]
[327620738,1716255036125,-155.0,0.00038356,2]
[327620739,1716255036138,-500.0,0.00038356,6]
[327620740,1716255036148,-1168.84,0.00038356,6]
[327620741,1716255036158,-519.023167,0.00038356,6]
[327620742,1716255036168,-500.0,0.00038356,6]
[327620743,1716255036179,-500.0,0.00038356,6]
[327620744,1716255036190,-794.33,0.00038356,6]
[327620745,1716255036201,-500.0,0.00038356,6]
[327620746,1716255036211,-1648.82,0.00038356,6]
[327620747,1716255036220,-500.0,0.00038356,6]
[327620748,1716255036230,-500.0,0.00038356,6]
[327620749,1716255036240,-922.99,0.00038356,6]
[327620750,1716255036250,-500.0,0.00038356,6]
[327620751,1716255036259,-500.0,0.00038356,6]
[327620752,1716255036269,-500.0,0.00038356,6]
[327620753,1716255036279,-500.0,0.00038356,6]
[327620754,1716255036290,-757.71,0.00038356,6]
[327620755,1716255036300,-500.0,0.00038356,6]
[327620756,1716255036310,-119.17746003,0.00038356,6]
[327620757,1716255036328,-853.38253997,0.00038356,6]
[327620758,1716255036338,-1525.38,0.00038356,6]
[327620759,1716255036348,-1763.72,0.00038356,6]
[327620760,1716255036357,-500.0,0.00038356,6]
[327620761,1716255036367,-1004.6,0.00038356,6]
[327620762,1716255036377,-500.0,0.00038356,6]
[327620763,1716255036387,-500.0,0.00038356,6]
[327620764,1716255036396,-500.0,0.00038356,6]
[327620765,1716255036406,-500.0,0.00038356,6]
[327620766,1716255036415,-500.0,0.00038356,6]
[327620767,1716255036425,-1265.53,0.00038356,6]
[327620768,1716255036437,-1253.4,0.00038356,6]
[327620769,1716255036447,-788.91,0.00038356,6]
[327620770,1716255036456,-500.0,0.00038356,6]
[327620771,1716255036465,-1344.61,0.00038356,6]
[327620772,1716255036474,-627.26,0.00038356,6]
[327620773,1716255036484,-637.77,0.00038356,6]
[327620774,1716255036494,-500.0,0.00038356,6]
[327620775,1716255036504,-902.42,0.00038356,6]
[327620776,1716255036513,-1216.9,0.00038356,6]
[327620777,1716255036523,-1095.44,0.00038356,6]
[327620778,1716255036532,-500.0,0.00038356,6]
[327620779,1716255036542,-844.3,0.00038356,6]
[327620780,1716255036552,-758.92,0.00038356,6]
[327620781,1716255036561,-1089.27,0.00038356,6]
[327620782,1716255036571,-857.27,0.00038356,6]
[327620783,1716255036581,-1324.22,0.00038356,6]
[327620784,1716255036591,-500.0,0.00038356,6]
[327620785,1716255036601,-622.65,0.00038356,6]
[327620786,1716255036610,-1247.02,0.00038356,6]
[327620787,1716255036619,-974.29,0.00038356,6]
[327620788,1716255036629,-500.0,0.00038356,6]
[327620789,1716255036639,-1180.87,0.00038356,6]
[327620790,1716255036648,-500.0,0.00038356,6]
[327620791,1716255036658,-507.0,0.00038356,6]
[327620792,1716255036667,-500.0,0.00038356,6]
[327620793,1716255036677,-705.0,0.00038356,6]
[327620794,1716255036687,-500.0,0.00038356,6]
[327620795,1716255036697,-500.0,0.00038356,6]
[327620796,1716255036706,-500.0,0.00038356,6]
[327620797,1716255036716,-985.14,0.00038356,6]
[327620798,1716255036725,-1371.74,0.00038356,6]
[327620799,1716255036735,-1067.57,0.00038356,6]
[327620800,1716255036745,-500.0,0.00038356,6]
[327620801,1716255036754,-500.0,0.00038356,6]
[327620802,1716255036764,-627.69,0.00038356,6]
[327620803,1716255036774,-1710.09,0.00038356,6]
[327620804,1716255036784,-1247.29,0.00038356,6]
[327620805,1716255036794,-1014.76,0.00038356,6]
[327620806,1716255036804,-500.0,0.00038356,6]
[327620807,1716255036814,-1119.42,0.00038356,6]
[327620808,1716255036823,-500.0,0.00038356,6]
[327620809,1716255036833,-500.0,0.00038356,6]
[327620810,1716255036843,-674.32,0.00038356,6]
[327620811,1716255036853,-613.89,0.00038356,6]
[327620812,1716255036863,-623.92,0.00038356,6]
[327620813,1716255036872,-651.01,0.00038356,6]
[327620814,1716255036883,-2045.28,0.00038356,6]
[327620815,1716255036892,-888.25,0.00038356,6]
[327620816,1716255036902,-500.0,0.00038356,6]
[327620817,1716255036915,-500.0,0.00038356,6]
[327620818,1716255036926,-500.0,0.00038356,6]
[327620819,1716255036937,-500.0,0.00038356,6]
[327620820,1716255036947,-637.47,0.00038356,6]
[327620821,1716255036956,-1925.28,0.00038356,6]
[327620822,1716255036965,-896.53,0.00038356,6]
[327620823,1716255036975,-1838.04,0.00038356,6]
[327620824,1716255036984,-927.5,0.00038356,6]
[327620825,1716255036994,-731.85,0.00038356,6]
[327620826,1716255037005,-500.0,0.00038356,6]
[327620827,1716255037014,-500.0,0.00038356,6]
[327620828,1716255037024,-566.35,0.00038356,6]
[327620829,1716255037034,-805.92,0.00038356,6]
[327620830,1716255037043,-500.0,0.00038356,6]
[327620831,1716255037053,-500.0,0.00038356,6]
[327620832,1716255037062,-1238.35,0.00038356,6]
[327620833,1716255037072,-1233.38,0.00038356,6]
[327620834,1716255037083,-633.08,0.00038356,30]
[327620835,1716255037093,-387.23433127,0.00038356,6]
[327620836,1716255037103,-844.94,0.00038356,6]
[327620837,1716255037114,-730.28,0.00038356,6]
[327620838,1716255037124,-590.55,0.00038356,6]
[327620839,1716255037134,-500.0,0.00038356,6]
[327620840,1716255037143,-500.0,0.00038356,6]
[327620841,1716255037154,-500.0,0.00038356,6]
[327620842,1716255037164,-868.46,0.00038356,6]
[327620843,1716255037173,-500.0,0.00038356,6]
[327620844,1716255037184,-761.68,0.00038356,6]
[327620845,1716255037195,-500.0,0.00038356,6]
[327620846,1716255037205,-995.07,0.00038356,6]
[327620847,1716255037214,-500.0,0.00038356,6]
[327620848,1716255037223,-862.23,0.00038356,6]
[327620849,1716255037233,-160.16355476,0.00038356,6]
[327620850,1716255037248,-251.61999996,0.00038356,6]
[327620851,1716255037260,-446.55644528,0.00038356,6]
[327620852,1716255037270,-500.0,0.00038356,6]
[327620853,1716255037280,-1346.36,0.00038356,6]
[327620854,1716255037290,-734.96,0.00038356,6]
[327620855,1716255037299,-500.0,0.00038356,6]
[327620856,1716255037309,-655.39,0.00038356,6]
[327620857,1716255037319,-500.0,0.00038356,6]
[327620858,1716255037328,-500.0,0.00038356,6]
[327620859,1716255037338,-500.0,0.00038356,6]
[327620860,1716255037348,-974.19,0.00038356,6]
[327620861,1716255037357,-1061.61,0.00038356,6]
[327620862,1716255037367,-500.0,0.00038356,6]
[327620863,1716255037376,-1004.29,0.00038356,6]
[327620864,1716255037386,-500.0,0.00038356,6]
[327620865,1716255037396,-500.0,0.00038356,6]
[327620866,1716255037405,-116.09684162,0.00038356,6]
[327620867,1716255037418,-383.90315838,0.00038356,6]
[327620868,1716255037428,-384.57579716,0.00038356,6]
[327620869,1716255037440,-2119.24,0.00038356,6]
[327620870,1716255037449,-500.0,0.00038356,6]
[327620871,1716255037459,-237.63893409,0.00038356,6]
[327620872,1716255037620,-387.83106591,0.00038356,6]
[327620873,1716255037630,-284.51133409,0.00038356,6]
[327620874,1716255037642,-588.71486484,0.00038356,6]
[327620875,1716255037653,-93.83380107,0.00038356,6]
[327620876,1716255037662,-865.87,0.00038356,6]